[Event "Mitropa Online Cup Women 2021"]
[Site "Hybrid"]
[Date "2021.05.04"]
[Round "4.1"]
[White "Lubbe, Melanie"]
[Black "Gaal, Zsoka"]
[Result "0-1"]
[ECO "B11"]
[WhiteElo "2274"]
[BlackElo "2169"]
[Annotator "NA"]
[PlyCount "184"]
[EventDate "2021.05.04"]
[EventType "team-tourn"]
[EventCountry "NET"]
[SourceTitle "playchess.com"]
[Source "ChessBase"]
[SourceQuality "1"]
[WhiteTeam "Germany"]
[BlackTeam "Hungary"]
[WhiteTeamCountry "GER"]
[BlackTeamCountry "HUN"]
[TimeControl "40/5400+30:1800+30"]

1. e4 {[%emt 0:00:00]} c6 {[%emt 0:00:06]} 2. Nc3 {[%emt 0:00:15]} d5 {[%emt 0:00:20]} 3. Nf3 {[%emt 0:00:19]} Bg4 {[%emt 0:00:49]} 4. h3 {[%emt 0:00:30]} Bxf3 {[%emt 0:00:47]} 5. Qxf3 {[%emt 0:00:11]} e6 {[%emt 0:00:06]} 6. Be2 {[%emt 0:00:54]} Bc5 {[%emt 0:00:33]} 7. O-O {[%emt 0:00:52]} Nd7 {[%emt 0:00:21]} 8. Rd1 {[%emt 0:06:44]} d4 {[%emt 0:06:00]} 9. Nb1 {[%emt 0:01:37]} Ne5 {[%emt 0:03:32]} 10. Qg3 {[%emt 0:11:18]} d3 {[%emt 0:03:01]} 11. Qxe5 {[%emt 0:09:45]} Bd4 {[%emt 0:00:20]} 12. Qg3 {[%emt 0:00:47]} dxc2 {[%emt 0:00:57]} 13. Rf1 {[%emt 0:02:49]} cxb1=Q {[%emt 0:00:06]} 14. Rxb1 {[%emt 0:00:07]} h5 {[%emt 0:02:38]} 15. b4 {[%emt 0:10:32]} h4 {[%emt 0:02:32]} 16. Qf3 {[%emt 0:08:11]} Nf6 {[%emt 0:04:13]} 17. Bc4 {[%emt 0:08:19]} Qd6 {[%emt 0:11:14]} 18. d3 {[%emt 0:05:32]} Nd7 {[%emt 0:11:07]} 19. Bf4 {[%emt 0:03:14]} Ne5 {[%emt 0:00:52]} 20. Qe2 {[%emt 0:02:16]} O-O-O {[%emt 0:03:37]} 21. Kh1 {[%emt 0:02:18]} Rdg8 {[%emt 0:01:52]} 22. Bh2 {[%emt 0:01:09]} g5 {[%emt 0:01:30]} 23. f3 {[%emt 0:03:05]} Kd7 {[%emt 0:11:52]} 24. Qc2 {[%emt 0:02:46]} Ke7 {[%emt 0:04:30]} 25. b5 {[%emt 0:03:38]} c5 {[%emt 0:01:02]} 26. Bb3 {[%emt 0:01:19]} b6 {[%emt 0:01:52]} 27. a4 {[%emt 0:00:59]} Qd7 {[%emt 0:00:49]} 28. Qd2 {[%emt 0:00:48]} f6 {[%emt 0:04:29]} 29. Rbc1 {[%emt 0:05:30]} Ng6 {[%emt 0:02:55]} 30. Rc2 {[%emt 0:00:07]} Be5 {[%emt 0:01:49]} 31. Bxe5 {[%emt 0:01:41]} Nxe5 {[%emt 0:00:06]} 32. f4 {[%emt 0:03:21]} gxf4 {[%emt 0:02:23]} 33. Qxf4 {[%emt 0:00:07]} Rg6 {[%emt 0:00:21]} 34. Rd2 {[%emt 0:02:03]} Qd4 {[%emt 0:02:14]} 35. Rfd1 {[%emt 0:01:56]} Rhg8 {[%emt 0:06:03]} 36. Bc4 {[%emt 0:01:15]} Rg3 {[%emt 0:05:07]} 37. Rf1 {[%emt 0:00:07]} R8g6 {[%emt 0:01:53]} 38. Rdf2 {[%emt 0:00:05]} Qe3 {[%emt 0:03:03]} 39. Qxe3 {[%emt 0:01:30]} Rxe3 {[%emt 0:00:08]} 40. Rf4 {[%emt 0:00:00]} Nxd3 {[%emt 0:00:00]} 41. Rxh4 {[%emt 0:05:40]} Rg7 {[%emt 0:03:42]} 42. a5 {[%emt 0:10:27]} bxa5 {[%emt 0:05:45]} 43. Ra1 {[%emt 0:08:29]} Re1+ {[%emt 0:03:15]} 44. Rxe1 {[%emt 0:00:06]} Nxe1 {[%emt 0:00:05]} 45. e5 {[%emt 0:03:47]} fxe5 {[%emt 0:03:57]} 46. Rh6 {[%emt 0:01:06]} Kf8 {[%emt 0:02:26]} 47. g4 {[%emt 0:01:32]} a4 {[%emt 0:06:00]} 48. Rxe6 {[%emt 0:00:20]} Re7 {[%emt 0:02:46]} 49. Rf6+ {[%emt 0:00:45]} Kg7 {[%emt 0:00:15]} 50. Rf2 {[%emt 0:01:12]} e4 {[%emt 0:00:32]} 51. Re2 {[%emt 0:01:08]} Nf3 {[%emt 0:00:04]} 52. Kg2 {[%emt 0:00:47]} Nd4 {[%emt 0:01:09]} 53. Re3 {[%emt 0:00:24]} Nc2 {[%emt 0:00:53]} 54. Rc3 {[%emt 0:00:27]} Nb4 {[%emt 0:02:35]} 55. Kf2 {[%emt 0:02:03]} Rd7 {[%emt 0:01:48]} 56. Ra3 {[%emt 0:00:40]} Rd2+ {[%emt 0:02:48]} 57. Be2 {[%emt 0:00:03]} Rd4 {[%emt 0:00:27]} 58. Rc3 {[%emt 0:00:20]} Nd3+ {[%emt 0:02:36]} 59. Ke3 {[%emt 0:00:16]} Kf6 {[%emt 0:00:17]} 60. Rxc5 {[%emt 0:00:54]} Nxc5 {[%emt 0:00:04]} 61. Kxd4 {[%emt 0:00:02]} Nb3+ {[%emt 0:00:34]} 62. Kc3 {[%emt 0:00:18]} Nc1 {[%emt 0:00:03]} 63. Bc4 {[%emt 0:00:28]} a3 {[%emt 0:00:38]} 64. Kd4 {[%emt 0:01:18]} a2 {[%emt 0:00:44]} 65. Bxa2 {[%emt 0:00:03]} Nxa2 {[%emt 0:00:02]} 66. Kxe4 {[%emt 0:00:51]} Nc3+ {[%emt 0:00:22]} 67. Kd4 {[%emt 0:00:18]} Nxb5+ {[%emt 0:00:12]} 68. Kc5 {[%emt 0:00:43]} Nc7 {[%emt 0:00:25]} 69. Kb4 {[%emt 0:01:19]} Ke7 {[%emt 0:01:35]} 70. Ka5 {[%emt 0:00:30]} Kd7 {[%emt 0:00:14]} 71. h4 {[%emt 0:00:32]} Kc8 {[%emt 0:00:14]} 72. g5 {[%emt 0:00:22]} Ne6 {[%emt 0:00:06]} 73. g6 {[%emt 0:00:39]} Ng7 {[%emt 0:00:02]} 74. Ka6 {[%emt 0:00:07]} Kb8 {[%emt 0:00:03]} 75. Ka5 {[%emt 0:00:07]} Kb7 {[%emt 0:00:02]} 76. Kb5 {[%emt 0:00:28]} a6+ {[%emt 0:00:02]} 77. Kc5 {[%emt 0:00:55]} Kc7 {[%emt 0:00:18]} 78. Kb4 {[%emt 0:00:17]} Kb6 {[%emt 0:00:02]} 79. Ka4 {[%emt 0:00:03]} a5 {[%emt 0:00:02]} 80. Ka3 {[%emt 0:00:07]} Kb5 {[%emt 0:00:01]} 81. Kb3 {[%emt 0:00:11]} a4+ {[%emt 0:00:01]} 82. Ka3 {[%emt 0:00:02]} Ka5 {[%emt 0:00:02]} 83. Ka2 {[%emt 0:00:13]} Kb4 {[%emt 0:00:02]} 84. Kb2 {[%emt 0:00:07]} a3+ {[%emt 0:00:01]} 85. Ka2 {[%emt 0:00:02]} Ka4 {[%emt 0:00:01]} 86. h5 {[%emt 0:02:36]} Nxh5 {[%emt 0:00:28]} 87. Kb1 {[%emt 0:01:02]} Kb3 {[%emt 0:01:38]} 88. Ka1 {[%emt 0:00:05]} Ng7 {[%emt 0:00:09]} 89. Kb1 {[%emt 0:00:02]} Nf5 {[%emt 0:00:08]} 90. Ka1 {[%emt 0:00:45]} Nd4 {[%emt 0:00:11]} 91. g7 {[%emt 0:00:06]} Nc2+ {[%emt 0:00:03]} 92. Kb1 {[%emt 0:00:02]} a2+ {[%emt 0:00:01]} 0-1

[Event "Mitropa Online Cup Women 2021"]
[Site "Hybrid"]
[Date "2021.05.04"]
[Round "4.1"]
[White "Schneider, Jana"]
[Black "Terbe, Julianna"]
[Result "1-0"]
[ECO "C95"]
[WhiteElo "2272"]
[BlackElo "2267"]
[Annotator "NA"]
[PlyCount "89"]
[EventDate "2021.05.04"]
[EventType "team-tourn"]
[EventCountry "NET"]
[SourceTitle "playchess.com"]
[Source "ChessBase"]
[SourceQuality "1"]
[WhiteTeam "Germany"]
[BlackTeam "Hungary"]
[WhiteTeamCountry "GER"]
[BlackTeamCountry "HUN"]
[TimeControl "40/5400+30:1800+30"]

1. e4 {[%emt 0:00:00]} e5 {[%emt 0:00:07]} 2. Nf3 {[%emt 0:00:14]} Nc6 {[%emt 0:00:05]} 3. Bb5 {[%emt 0:00:08]} a6 {[%emt 0:00:07]} 4. Ba4 {[%emt 0:00:12]} Nf6 {[%emt 0:00:05]} 5. O-O {[%emt 0:00:08]} Be7 {[%emt 0:00:19]} 6. Re1 {[%emt 0:00:09]} b5 {[%emt 0:00:13]} 7. Bb3 {[%emt 0:00:08]} d6 {[%emt 0:00:04]} 8. c3 {[%emt 0:00:07]} O-O {[%emt 0:00:06]} 9. h3 {[%emt 0:00:08]} Nb8 {[%emt 0:05:00]} 10. d4 {[%emt 0:00:30]} Nbd7 {[%emt 0:00:05]} 11. Nbd2 {[%emt 0:00:11]} Bb7 {[%emt 0:00:09]} 12. Bc2 {[%emt 0:00:19]} Re8 {[%emt 0:00:33]} 13. Nf1 {[%emt 0:00:40]} g6 {[%emt 0:05:26]} 14. Ng3 {[%emt 0:05:19]} Bf8 {[%emt 0:01:01]} 15. Bg5 {[%emt 0:02:57]} h6 {[%emt 0:03:13]} 16. Bd2 {[%emt 0:00:15]} Bg7 {[%emt 0:09:13]} 17. a4 {[%emt 0:05:59]} c6 {[%emt 0:01:48]} 18. Qb1 {[%emt 0:10:11]} Qc7 {[%emt 0:04:22]} 19. Qa2 {[%emt 0:10:55]} Re7 {[%emt 0:13:30]} 20. Rad1 {[%emt 0:04:41]} Nb6 {[%emt 0:05:23]} 21. Be3 {[%emt 0:14:20]} Nfd7 {[%emt 0:10:43]} 22. h4 {[%emt 0:02:58]} exd4 {[%emt 0:06:36]} 23. cxd4 {[%emt 0:11:30]} d5 {[%emt 0:00:15]} 24. h5 {[%emt 0:02:07]} Nc4 {[%emt 0:05:29]} 25. hxg6 {[%emt 0:01:31]} fxg6 {[%emt 0:01:48]} 26. e5 {[%emt 0:01:21]} Nf8 {[%emt 0:06:32]} 27. Nh4 {[%emt 0:01:22]} c5 {[%emt 0:04:03]} 28. Bxg6 {[%emt 0:07:00]} cxd4 {[%emt 0:06:28]} 29. Bxd4 {[%emt 0:00:07]} Bxe5 {[%emt 0:01:24]} 30. Ngf5 {[%emt 0:01:03]} Re6 {[%emt 0:00:51]} 31. Nxh6+ {[%emt 0:01:27]} Kg7 {[%emt 0:00:08]} 32. N6f5+ {[%emt 0:01:00]} Kf6 {[%emt 0:00:25]} 33. Bh5 {[%emt 0:04:46]} Bxd4 {[%emt 0:02:31]} 34. Nxd4 {[%emt 0:00:08]} Rxe1+ {[%emt 0:02:28]} 35. Rxe1 {[%emt 0:00:09]} Qh7 {[%emt 0:00:10]} 36. g4 {[%emt 0:01:10]} Qd3 {[%emt 0:01:51]} 37. Nhf3 {[%emt 0:00:27]} Nd2 {[%emt 0:02:36]} 38. g5+ {[%emt 0:00:26]} Kg7 {[%emt 0:00:07]} 39. Re7+ {[%emt 0:00:44]} Kh8 {[%emt 0:00:11]} 40. Qa1 {[%emt 0:00:00]} Rc8 {[%emt 0:00:00]} 41. Rxb7 {[%emt 0:05:47]} Nb1 {[%emt 0:03:31]} 42. b4 {[%emt 0:03:45]} Rc1+ {[%emt 0:05:47]} 43. Kh2 {[%emt 0:00:49]} Qf1 {[%emt 0:02:17]} 44. Ne2+ {[%emt 0:01:08]} Nc3 {[%emt 0:00:06]} 45. Nxc1 {[%emt 0:00:50]} 1-0

[Event "Mitropa Online Cup Women 2021"]
[Site "Hybrid"]
[Date "2021.05.04"]
[Round "4.1"]
[White "Juhasz, Barbara"]
[Black "Muetsch, Annmarie"]
[Result "1/2-1/2"]
[ECO "C01"]
[WhiteElo "2211"]
[BlackElo "2266"]
[Annotator "NA"]
[PlyCount "149"]
[EventDate "2021.05.04"]
[EventType "team-tourn"]
[EventCountry "NET"]
[SourceTitle "playchess.com"]
[Source "ChessBase"]
[SourceQuality "1"]
[WhiteTeam "Hungary"]
[BlackTeam "Germany"]
[WhiteTeamCountry "HUN"]
[BlackTeamCountry "GER"]
[TimeControl "40/5400+30:1800+30"]

1. e4 {[%emt 0:00:00]} e6 {[%emt 0:00:17]} 2. d4 {[%emt 0:01:16]} d5 {[%emt 0:00:09]} 3. Bd3 {[%emt 0:00:06]} dxe4 {[%emt 0:00:13]} 4. Bxe4 {[%emt 0:00:06]} Nf6 {[%emt 0:00:12]} 5. Bf3 {[%emt 0:00:08]} c5 {[%emt 0:00:20]} 6. Ne2 {[%emt 0:00:06]} Nc6 {[%emt 0:00:26]} 7. Be3 {[%emt 0:00:05]} Nd5 {[%emt 0:00:27]} 8. Bxd5 {[%emt 0:00:09]} Qxd5 {[%emt 0:00:08]} 9. Nbc3 {[%emt 0:00:07]} Qxg2 {[%emt 0:00:11]} 10. Rg1 {[%emt 0:00:07]} Qxh2 {[%emt 0:00:08]} 11. Bf4 {[%emt 0:00:08]} Qh3 {[%emt 0:00:08]} 12. Nb5 {[%emt 0:00:14]} f6 {[%emt 0:00:26]} 13. Nc7+ {[%emt 0:00:13]} Kf7 {[%emt 0:00:08]} 14. Nxa8 {[%emt 0:00:06]} cxd4 {[%emt 0:00:16]} 15. Nxd4 {[%emt 0:00:08]} Bb4+ {[%emt 0:00:38]} 16. c3 {[%emt 0:00:05]} Bxc3+ {[%emt 0:00:12]} 17. bxc3 {[%emt 0:00:06]} Qxc3+ {[%emt 0:00:08]} 18. Bd2 {[%emt 0:00:10]} Qxd4 {[%emt 0:00:09]} 19. Rc1 {[%emt 0:00:06]} Bd7 {[%emt 0:00:36]} 20. Be3 {[%emt 0:12:43]} Qxd1+ {[%emt 0:32:48]} 21. Rxd1 {[%emt 0:04:23]} Ne5 {[%emt 0:00:24]} 22. f4 {[%emt 0:09:34]} Nf3+ {[%emt 0:01:19]} 23. Kf2 {[%emt 0:00:05]} Bc6 {[%emt 0:00:39]} 24. Rh1 {[%emt 0:05:13]} Rxa8 {[%emt 0:04:24]} 25. Rh3 {[%emt 0:06:02]} e5 {[%emt 0:06:32]} 26. Rxf3 {[%emt 0:03:29]} Bxf3 {[%emt 0:00:09]} 27. Kxf3 {[%emt 0:00:09]} exf4 {[%emt 0:00:12]} 28. Kxf4 {[%emt 0:00:25]} Ke6 {[%emt 0:13:53]} 29. Bc5 {[%emt 0:08:49]} g5+ {[%emt 0:00:16]} 30. Kg4 {[%emt 0:00:34]} Rc8 {[%emt 0:00:23]} 31. Bxa7 {[%emt 0:21:40]} Ra8 {[%emt 0:01:14]} 32. Re1+ {[%emt 0:11:05]} Kf7 {[%emt 0:01:52]} 33. Bc5 {[%emt 0:00:08]} Ra4+ {[%emt 0:00:12]} 34. Kg3 {[%emt 0:00:17]} Rxa2 {[%emt 0:00:24]} 35. Re7+ {[%emt 0:00:51]} Kg6 {[%emt 0:00:07]} 36. Rxb7 {[%emt 0:00:06]} h5 {[%emt 0:12:13]} 37. Bd4 {[%emt 0:08:14]} Ra5 {[%emt 0:07:44]} 38. Rb6 {[%emt 0:03:52]} Rf5 {[%emt 0:00:51]} 39. Rb8 {[%emt 0:04:33]} h4+ {[%emt 0:01:17]} 40. Kg2 {[%emt 0:00:00]} Rf4 {[%emt 0:00:00]} 41. Be3 {[%emt 0:08:57]} Ra4 {[%emt 0:05:38]} 42. Bf2 {[%emt 0:02:32]} Kf5 {[%emt 0:04:28]} 43. Rb6 {[%emt 0:00:56]} Ra2 {[%emt 0:11:17]} 44. Kg1 {[%emt 0:02:03]} Ra4 {[%emt 0:02:20]} 45. Kg2 {[%emt 0:00:14]} Rg4+ {[%emt 0:01:20]} 46. Kh3 {[%emt 0:06:42]} Rf4 {[%emt 0:01:08]} 47. Rb5+ {[%emt 0:03:14]} Kg6 {[%emt 0:00:36]} 48. Kg2 {[%emt 0:00:18]} f5 {[%emt 0:02:14]} 49. Rb8 {[%emt 0:03:42]} Ra4 {[%emt 0:07:25]} 50. Rf8 {[%emt 0:05:06]} Ra5 {[%emt 0:01:17]} 51. Rh8 {[%emt 0:01:40]} Ra2 {[%emt 0:01:53]} 52. Kg1 {[%emt 0:00:10]} Ra4 {[%emt 0:00:33]} 53. Kg2 {[%emt 0:00:06]} Kf6 {[%emt 0:01:26]} 54. Rh6+ {[%emt 0:01:51]} Ke5 {[%emt 0:07:41]} 55. Rh5 {[%emt 0:00:04]} Kf6 {[%emt 0:00:57]} 56. Rh6+ {[%emt 0:00:04]} Kf7 {[%emt 0:00:16]} 57. Rb6 {[%emt 0:00:36]} Re4 {[%emt 0:00:18]} 58. Rh6 {[%emt 0:00:46]} Re6 {[%emt 0:01:10]} 59. Rh8 {[%emt 0:00:24]} Kg7 {[%emt 0:01:42]} 60. Bd4+ {[%emt 0:00:05]} Kg6 {[%emt 0:00:12]} 61. Kh3 {[%emt 0:01:03]} Rd6 {[%emt 0:01:47]} 62. Rg8+ {[%emt 0:00:23]} Kh5 {[%emt 0:00:40]} 63. Rh8+ {[%emt 0:00:31]} Rh6 {[%emt 0:00:27]} 64. Rf8 {[%emt 0:00:16]} f4 {[%emt 0:00:17]} 65. Rg8 {[%emt 0:03:23]} Rd6 {[%emt 0:00:43]} 66. Rh8+ {[%emt 0:00:31]} Kg6 {[%emt 0:00:03]} 67. Bf2 {[%emt 0:00:25]} Kf5 {[%emt 0:01:25]} 68. Rf8+ {[%emt 0:00:24]} Ke6 {[%emt 0:01:30]} 69. Kg4 {[%emt 0:00:08]} Rd2 {[%emt 0:00:04]} 70. Bxh4 {[%emt 0:00:37]} gxh4 {[%emt 0:00:21]} 71. Rxf4 {[%emt 0:00:04]} Ke5 {[%emt 0:00:11]} 72. Rf3 {[%emt 0:00:09]} Rd4+ {[%emt 0:00:16]} 73. Kh5 {[%emt 0:00:07]} Rf4 {[%emt 0:00:12]} 74. Rxf4 {[%emt 0:00:04]} Kxf4 {[%emt 0:00:02]} 75. Kxh4 {[%emt 0:00:02]} 1/2-1/2

[Event "Mitropa Online Cup Women 2021"]
[Site "Hybrid"]
[Date "2021.05.04"]
[Round "4.1"]
[White "Karacsonyi, Kata"]
[Black "Sieber, Fiona"]
[Result "1-0"]
[ECO "C77"]
[WhiteElo "2138"]
[BlackElo "2275"]
[Annotator "NA"]
[PlyCount "71"]
[EventDate "2021.05.04"]
[EventType "team-tourn"]
[EventCountry "NET"]
[SourceTitle "playchess.com"]
[Source "ChessBase"]
[SourceQuality "1"]
[WhiteTeam "Hungary"]
[BlackTeam "Germany"]
[WhiteTeamCountry "HUN"]
[BlackTeamCountry "GER"]
[TimeControl "40/5400+30:1800+30"]

1. e4 {[%emt 0:00:00]} e5 {[%emt 0:01:15]} 2. Nf3 {[%emt 0:00:06]} Nc6 {[%emt 0:00:05]} 3. Bb5 {[%emt 0:00:07]} a6 {[%emt 0:00:09]} 4. Ba4 {[%emt 0:00:05]} Nf6 {[%emt 0:00:14]} 5. O-O {[%emt 0:00:06]} Be7 {[%emt 0:00:16]} 6. d3 {[%emt 0:00:08]} d6 {[%emt 0:00:26]} 7. c3 {[%emt 0:00:21]} O-O {[%emt 0:00:49]} 8. Nbd2 {[%emt 0:01:59]} b5 {[%emt 0:02:06]} 9. Bc2 {[%emt 0:00:09]} d5 {[%emt 0:01:22]} 10. d4 {[%emt 0:19:27]} exd4 {[%emt 0:08:20]} 11. Nxd4 {[%emt 0:18:39]} Nxd4 {[%emt 0:03:34]} 12. cxd4 {[%emt 0:00:19]} dxe4 {[%emt 0:00:26]} 13. Nxe4 {[%emt 0:00:31]} Bb7 {[%emt 0:08:00]} 14. f3 {[%emt 0:12:01]} Re8 {[%emt 0:13:22]} 15. Qd3 {[%emt 0:06:38]} g6 {[%emt 0:00:21]} 16. a4 {[%emt 0:13:14]} Nxe4 {[%emt 0:21:00]} 17. fxe4 {[%emt 0:00:29]} c5 {[%emt 0:12:17]} 18. d5 {[%emt 0:04:54]} c4 {[%emt 0:03:25]} 19. Qf3 {[%emt 0:03:18]} f6 {[%emt 0:03:31]} 20. axb5 {[%emt 0:02:08]} axb5 {[%emt 0:00:48]} 21. Rxa8 {[%emt 0:00:13]} Bxa8 {[%emt 0:00:10]} 22. Be3 {[%emt 0:03:20]} Bf8 {[%emt 0:08:49]} 23. Bd4 {[%emt 0:02:58]} Bg7 {[%emt 0:00:04]} 24. Bxf6 {[%emt 0:00:35]} Qb6+ {[%emt 0:00:05]} 25. Qf2 {[%emt 0:00:31]} Qxf2+ {[%emt 0:01:26]} 26. Rxf2 {[%emt 0:00:04]} Bxf6 {[%emt 0:04:01]} 27. Rxf6 {[%emt 0:00:04]} b4 {[%emt 0:01:27]} 28. b3 {[%emt 0:02:51]} c3 {[%emt 0:03:09]} 29. Rb6 {[%emt 0:00:17]} Bxd5 {[%emt 0:01:19]} 30. exd5 {[%emt 0:00:08]} Re2 {[%emt 0:00:19]} 31. Rb8+ {[%emt 0:08:20]} Kf7 {[%emt 0:00:28]} 32. d6 {[%emt 0:00:27]} Rd2 {[%emt 0:01:16]} 33. d7 {[%emt 0:00:18]} Rxd7 {[%emt 0:00:09]} 34. Rxb4 {[%emt 0:00:06]} Rd2 {[%emt 0:00:26]} 35. Rf4+ {[%emt 0:00:04]} Ke6 {[%emt 0:01:26]} 36. Rf2 {[%emt 0:00:00]} 1-0

[Event "Mitropa Online Cup Women 2021"]
[Site "Hybrid"]
[Date "2021.05.04"]
[Round "4.2"]
[White "Trippold, Denise"]
[Black "Sankova, Stella"]
[Result "0-1"]
[ECO "A13"]
[WhiteElo "2145"]
[BlackElo "2087"]
[Annotator "NA"]
[PlyCount "50"]
[EventDate "2021.05.04"]
[EventType "team-tourn"]
[EventCountry "NET"]
[SourceTitle "playchess.com"]
[Source "ChessBase"]
[SourceQuality "1"]
[WhiteTeam "Austria"]
[BlackTeam "Slovakia"]
[WhiteTeamCountry "AUT"]
[BlackTeamCountry "SVK"]
[TimeControl "40/5400+30:1800+30"]

1. Nf3 {[%emt 0:00:00]} d5 {[%emt 0:00:13]} 2. c4 {[%emt 0:00:20]} e6 {[%emt 0:00:13]} 3. g3 {[%emt 0:00:07]} dxc4 {[%emt 0:00:23]} 4. Qa4+ {[%emt 0:01:05]} Nd7 {[%emt 0:01:00]} 5. Qxc4 {[%emt 0:00:22]} a6 {[%emt 0:00:55]} 6. Qc2 {[%emt 0:02:41]} b5 {[%emt 0:01:41]} 7. Bg2 {[%emt 0:04:47]} Bb7 {[%emt 0:00:20]} 8. a4 {[%emt 0:01:47]} c5 {[%emt 0:03:19]} 9. Nc3 {[%emt 0:06:04]} Qb6 {[%emt 0:02:45]} 10. d3 {[%emt 0:03:42]} Ngf6 {[%emt 0:01:10]} 11. O-O {[%emt 0:00:13]} Be7 {[%emt 0:01:44]} 12. h3 {[%emt 0:06:44]} O-O {[%emt 0:01:08]} 13. b3 {[%emt 0:17:30]} Nd5 {[%emt 0:10:46]} 14. Nxd5 {[%emt 0:01:37]} Bxd5 {[%emt 0:00:05]} 15. Bb2 {[%emt 0:04:40]} Rab8 {[%emt 0:07:36]} 16. Nd2 {[%emt 0:22:22]} Rfc8 {[%emt 0:09:13]} 17. Rfb1 {[%emt 0:02:21]} Nf6 {[%emt 0:09:39]} 18. Qc3 {[%emt 0:01:47]} Bf8 {[%emt 0:01:45]} 19. Qe5 {[%emt 0:03:35]} h6 {[%emt 0:05:35]} 20. Rc1 {[%emt 0:10:52]} Bd6 {[%emt 0:04:07]} 21. Qc3 {[%emt 0:01:19]} c4 {[%emt 0:02:34]} 22. Ne4 {[%emt 0:05:07]} Bxe4 {[%emt 0:02:19]} 23. dxe4 {[%emt 0:00:02]} b4 {[%emt 0:01:23]} 24. a5 {[%emt 0:02:21]} bxc3 {[%emt 0:00:57]} 25. axb6 {[%emt 0:00:03]} cxb2 {[%emt 0:00:12]} 0-1

[Event "Mitropa Online Cup Women 2021"]
[Site "Hybrid"]
[Date "2021.05.04"]
[Round "4.2"]
[White "Taragelova, Martina"]
[Black "Hapala, Elisabeth"]
[Result "0-1"]
[ECO "B41"]
[WhiteElo "2010"]
[BlackElo "2120"]
[Annotator "NA"]
[PlyCount "124"]
[EventDate "2021.05.04"]
[EventType "team-tourn"]
[EventCountry "NET"]
[SourceTitle "playchess.com"]
[Source "ChessBase"]
[SourceQuality "1"]
[WhiteTeam "Slovakia"]
[BlackTeam "Austria"]
[WhiteTeamCountry "SVK"]
[BlackTeamCountry "AUT"]
[TimeControl "40/5400+30:1800+30"]

1. e4 {[%emt 0:00:00]} c5 {[%emt 0:00:05]} 2. Nf3 {[%emt 0:00:12]} e6 {[%emt 0:00:02]} 3. d4 {[%emt 0:00:21]} cxd4 {[%emt 0:00:03]} 4. Nxd4 {[%emt 0:00:16]} a6 {[%emt 0:00:08]} 5. c4 {[%emt 0:00:31]} Nf6 {[%emt 0:00:07]} 6. Nc3 {[%emt 0:00:43]} Qc7 {[%emt 0:00:06]} 7. Be2 {[%emt 0:01:53]} Bb4 {[%emt 0:00:35]} 8. O-O {[%emt 0:01:36]} O-O {[%emt 0:00:57]} 9. Qd3 {[%emt 0:03:27]} Bxc3 {[%emt 0:24:16]} 10. bxc3 {[%emt 0:01:37]} d6 {[%emt 0:00:27]} 11. f4 {[%emt 0:14:11]} Nbd7 {[%emt 0:02:08]} 12. Nb3 {[%emt 0:04:00]} b6 {[%emt 0:12:58]} 13. Ba3 {[%emt 0:11:19]} Nc5 {[%emt 0:01:43]} 14. Nxc5 {[%emt 0:02:17]} bxc5 {[%emt 0:00:39]} 15. Rfd1 {[%emt 0:04:23]} Qa5 {[%emt 0:15:39]} 16. Bc1 {[%emt 0:04:35]} Bb7 {[%emt 0:01:07]} 17. Bf3 {[%emt 0:01:50]} Rfd8 {[%emt 0:02:24]} 18. Be3 {[%emt 0:01:55]} Rd7 {[%emt 0:06:29]} 19. Rd2 {[%emt 0:07:02]} Rad8 {[%emt 0:00:22]} 20. Rad1 {[%emt 0:01:49]} Qa4 {[%emt 0:06:14]} 21. Bf2 {[%emt 0:06:29]} a5 {[%emt 0:11:37]} 22. Qe2 {[%emt 0:02:30]} Ba6 {[%emt 0:01:44]} 23. e5 {[%emt 0:04:00]} Bxc4 {[%emt 0:01:16]} 24. Qe3 {[%emt 0:01:22]} dxe5 {[%emt 0:02:05]} 25. fxe5 {[%emt 0:01:36]} Rxd2 {[%emt 0:03:08]} 26. Rxd2 {[%emt 0:00:11]} Rxd2 {[%emt 0:00:31]} 27. Qxd2 {[%emt 0:00:10]} Nd5 {[%emt 0:00:10]} 28. Qb2 {[%emt 0:05:23]} h6 {[%emt 0:02:55]} 29. a3 {[%emt 0:12:08]} Bb5 {[%emt 0:00:34]} 30. h3 {[%emt 0:02:39]} Qc4 {[%emt 0:00:21]} 31. Bxd5 {[%emt 0:01:29]} exd5 {[%emt 0:00:15]} 32. Qd2 {[%emt 0:01:11]} a4 {[%emt 0:02:39]} 33. Qe3 {[%emt 0:00:56]} Qf1+ {[%emt 0:00:48]} 34. Kh2 {[%emt 0:00:12]} d4 {[%emt 0:01:45]} 35. cxd4 {[%emt 0:01:12]} Bc6 {[%emt 0:00:05]} 36. Qg3 {[%emt 0:00:44]} c4 {[%emt 0:00:09]} 37. Be1 {[%emt 0:01:46]} Bxg2 {[%emt 0:01:27]} 38. Qxg2 {[%emt 0:00:07]} Qxe1 {[%emt 0:00:04]} 39. Qg4 {[%emt 0:00:56]} Qf2+ {[%emt 0:00:23]} 40. Kh1 {[%emt 0:00:00]} Qf1+ {[%emt 0:00:00]} 41. Kh2 {[%emt 0:00:49]} g6 {[%emt 0:18:54]} 42. Qe4 {[%emt 0:10:18]} Qd3 {[%emt 0:00:37]} 43. Qh4 {[%emt 0:02:12]} c3 {[%emt 0:04:49]} 44. Qd8+ {[%emt 0:00:37]} Kh7 {[%emt 0:00:07]} 45. Qc7 {[%emt 0:00:37]} Qd2+ {[%emt 0:01:10]} 46. Kg3 {[%emt 0:05:38]} Qe3+ {[%emt 0:02:12]} 47. Kg2 {[%emt 0:00:37]} Qe4+ {[%emt 0:03:13]} 48. Kh2 {[%emt 0:02:31]} Qf4+ {[%emt 0:02:42]} 49. Kg2 {[%emt 0:01:52]} Qg5+ {[%emt 0:00:07]} 50. Kh2 {[%emt 0:02:13]} Qd2+ {[%emt 0:00:13]} 51. Kg3 {[%emt 0:00:12]} Kg7 {[%emt 0:01:49]} 52. e6 {[%emt 0:01:22]} Qe3+ {[%emt 0:00:07]} 53. Kg2 {[%emt 0:00:37]} Qe2+ {[%emt 0:00:09]} 54. Kg1 {[%emt 0:00:26]} Qxe6 {[%emt 0:00:32]} 55. Qxc3 {[%emt 0:00:44]} Qb3 {[%emt 0:00:06]} 56. Qc5 {[%emt 0:00:51]} Qg3+ {[%emt 0:00:12]} 57. Kf1 {[%emt 0:00:14]} Qxh3+ {[%emt 0:00:03]} 58. Ke1 {[%emt 0:00:36]} Qe3+ {[%emt 0:00:11]} 59. Kf1 {[%emt 0:01:05]} h5 {[%emt 0:00:44]} 60. Qd6 {[%emt 0:02:21]} h4 {[%emt 0:01:18]} 61. d5 {[%emt 0:00:50]} Qf3+ {[%emt 0:00:16]} 62. Kg1 {[%emt 0:00:17]} Qg3+ {[%emt 0:00:18]} 0-1